bitfinex/quotes_SOLUSD_20220117
["timestamp","ask_amount","ask_price","bid_price","bid_amount"]
[1642423255038,1.13657097,142.91,142.84,23.05954643]
[1642423256736,1.13657097,142.91,142.83,10.4988]
[1642423257337,1.13657097,142.91,142.81,10.7504]
[1642423257739,1.13657097,142.91,142.82,45.52537293]
[1642423258142,1.13657097,142.91,142.83,0.25]
[1642423258538,1.13657097,142.91,142.82,45.52537293]
[1642423259638,1.13657097,142.91,142.82,56.02527293]
[1642423261848,1.13657097,142.91,142.83,0.25]
[1642423262047,1.13657097,142.91,142.83,10.4988]
[1642423263650,1.13657097,142.91,142.83,80.7588]
[1642423263849,1.13657097,142.91,142.84,0.25]
[1642423264050,1.13657097,142.91,142.84,10.748]
[1642423264851,1.13657097,142.91,142.84,33.2961]
[1642423269778,1.13657097,142.91,142.84,33.0461]
[1642423269979,1.13657097,142.91,142.84,22.5481]
[1642423270780,1.13657097,142.91,142.84,68.74187566]
[1642423270982,9.53717097,142.91,142.84,68.74187566]
[1642423271180,9.53717097,142.91,142.84,22.5481]
[1642423271381,43.36239357,142.93,142.84,22.5481]
[1642423271780,43.36239357,142.93,142.85,0.25]
[1642423272179,3.96566476,142.93,142.85,45.68186004]
[1642423272379,3.96566476,142.93,142.85,56.17926004]
[1642423273781,51.24744169,142.94,142.85,56.17926004]
[1642423274183,10.17,142.94,142.85,56.17926004]
[1642423275384,23.678,142.95,142.85,56.17926004]
[1642423275586,23.678,142.95,142.87,10.4958]
[1642423275788,47.56154376,142.96,142.87,10.4958]
[1642423277788,3.96566476,142.96,142.87,10.4958]
[1642423278394,3.96566476,142.96,142.88,0.25]
[1642423278587,3.96566476,142.96,142.89,10.4942]
[1642423278787,3.96566476,142.96,142.9,15.84999426]
[1642423279588,7.94039243,142.98,142.9,15.84999426]
[1642423280189,7.94039243,142.98,142.9,26.34369426]
[1642423280589,7.94039243,142.98,142.88,93.1785]
[1642423280790,3.96566476,142.98,142.88,93.1785]
[1642423281492,3.96566476,142.98,142.88,103.6734]
[1642423281689,3.96566476,142.97,142.89,41.88422678]
[1642423282089,3.96566476,142.97,142.9,0.25]
[1642423282691,7.94039243,142.98,142.9,0.25]
[1642423283496,7.94039243,142.98,142.9,10.7433]
[1642423283791,3.96566476,142.98,142.9,10.7433]
[1642423283991,3.96566476,142.98,142.9,34.7838]
[1642423284595,3.96566476,142.99,142.9,34.7838]
[1642423286101,3.96566476,142.99,142.9,105.0438]
[1642423287198,3.96566476,142.99,142.9,34.7838]
[1642423287396,1.73904425,142.98,142.9,24.2905]
[1642423287798,3.96566476,142.99,142.9,24.2905]
[1642423288399,12.36146476,142.99,142.9,24.2905]
[1642423293926,12.36146476,142.99,142.9,105.0442]
[1642423293927,3.96566476,142.99,142.9,105.0442]
[1642423294526,3.96566476,142.99,142.9,34.7842]
[1642423294926,7.94060511,143.0,142.9,34.7842]
[1642423296628,3.97494035,143.0,142.9,34.7842]
[1642423297229,7.94060511,143.0,142.9,34.7842]
[1642423297429,7.94060511,143.0,142.9,105.0442]
[1642423298631,7.94060511,143.0,142.9,105.3042]
[1642423298932,7.94060511,143.0,142.9,121.4742]
[1642423300432,7.94060511,143.01,142.9,121.2142]
[1642423300630,7.94060511,143.01,142.9,50.9542]
[1642423300833,7.94060511,143.01,142.9,44.9542]
[1642423301635,3.96566476,143.0,142.9,44.9542]
[1642423303740,7.94060511,143.0,142.9,44.9542]
[1642423305342,7.94060511,143.0,142.9,115.2142]
[1642423306844,7.94060511,143.0,142.9,125.9182]
[1642423307043,3.96566476,142.99,142.9,125.9182]
[1642423309046,3.96566476,142.99,142.9,55.6582]
[1642423310654,3.96566476,142.99,142.9,125.9182]
[1642423311150,3.96566476,142.99,142.9,131.9182]
[1642423312250,3.96566476,142.99,142.9,132.1782]
[1642423313149,3.96566476,142.99,142.9,131.9182]
[1642423313351,3.96566476,142.99,142.9,125.9182]
[1642423314154,3.96566476,142.99,142.9,131.9182]
[1642423318355,3.96566476,142.99,142.9,125.9182]
[1642423318756,3.96566476,142.99,142.9,132.1782]
[1642423321457,3.96566476,142.98,142.9,132.1782]
[1642423322259,3.96566476,142.98,142.9,126.1782]
[1642423322459,3.96566476,142.99,142.9,132.1782]
[1642423323460,3.96566476,142.99,142.9,126.1782]
[1642423323660,3.96566476,142.99,142.9,132.1782]
[1642423324963,3.96566476,142.98,142.9,132.1782]
[1642423326663,3.96566476,142.99,142.9,132.1782]
[1642423326862,3.96566476,142.99,142.9,121.2142]
[1642423327091,3.96566476,142.99,142.9,50.9542]
[1642423327262,3.96566476,142.99,142.9,50.7042]
[1642423328266,3.96566476,142.99,142.9,44.7042]
[1642423328563,3.96566476,142.98,142.9,44.7042]
[1642423328764,3.96566476,142.98,142.91,0.25]
[1642423330067,1.99452244,142.95,142.91,0.25]
[1642423330464,1.99452244,142.95,142.91,10.7426]
[1642423330863,1.99452244,142.95,142.91,16.7426]
[1642423331065,1.99452244,142.95,142.92,70.26]
[1642423331267,1.99452244,142.95,142.93,0.25]
[1642423331870,1.99452244,142.97,142.93,10.7413]
[1642423332077,0.47697244,142.97,142.93,10.7413]
[1642423332270,0.47697244,142.97,142.93,39.6625]
[1642423332772,3.96566476,143.0,142.95,25.82492399]
[1642423332970,5.40716962,143.02,142.95,25.82492399]
[1642423333169,5.40716962,143.02,142.95,49.59942399]
[1642423334473,4.1418505,143.02,142.95,60.08892399]
[1642423334675,4.1418505,143.02,142.96,70.51]
[1642423334974,0.17618574,143.02,142.96,76.51]
[1642423335574,0.17618574,143.02,142.96,70.51]
[1642423337779,0.17618574,143.02,142.98,86.9975]
[1642423337977,0.17618574,143.02,142.98,86.7475]
[1642423338177,0.17618574,143.02,142.98,70.26]
[1642423338377,0.17618574,143.02,142.96,10.17]
[1642423338576,7.69318574,143.02,142.95,25.82492399]
[1642423340886,16.08718574,143.02,142.95,25.82492399]
[1642423342407,16.08718574,143.02,142.92,70.26]
[1642423342607,16.08718574,143.02,142.93,23.8229]
[1642423343306,16.08718574,143.02,142.93,62.98008374]
[1642423344509,8.57018574,143.02,142.93,62.98008374]
[1642423345411,0.17618574,143.02,142.93,133.24008374]
[1642423345710,0.17618574,143.02,142.94,0.25]
[1642423346413,40.03057394,143.02,142.93,62.98008374]
[1642423346613,40.03057394,143.02,142.93,23.8229]
[1642423347512,40.03057394,143.02,142.94,43.13452336]
[1642423348313,0.17618574,143.02,142.94,43.13452336]
[1642423348513,8.57018574,143.02,142.94,43.13452336]
[1642423348914,8.57018574,143.02,142.93,23.8229]
[1642423349126,15.17818574,143.02,142.93,23.8229]
[1642423349412,15.17818574,143.02,142.89,80.43]
[1642423349612,23.3457,143.01,142.9,23.2589]
[1642423349813,8.3953,143.0,142.9,23.2589]
[1642423350014,57.38818225,143.0,142.91,38.94455632]
[1642423350714,8.3953,143.0,142.91,38.94455632]
[1642423351416,8.3953,143.0,142.92,24.0514]
[1642423351817,40.37790093,142.99,142.92,24.0514]
[1642423352220,8.3953,143.0,142.92,24.0514]
[1642423353216,23.3457,143.01,142.92,24.0514]
[1642423354218,31.7402,143.01,142.92,24.0514]
[1642423355919,31.7402,143.01,142.93,0.25]
[1642423360729,31.7402,143.01,142.92,24.0514]
[1642423361127,8.3945,143.01,142.93,0.25]
[1642423365073,8.3945,143.01,142.92,24.0514]
[1642423365332,16.70254425,143.01,142.92,24.0514]
[1642423365530,14.9635,143.01,142.92,24.0514]
[1642423368362,18.92916476,143.01,142.92,24.0514]
[1642423369866,12.36016476,143.01,142.92,24.0514]
[1642423372571,8.3945,143.01,142.92,24.0514]
[1642423376179,3.96566476,143.01,142.93,70.26]
[1642423376378,3.96566476,143.01,142.92,24.0514]
[1642423376977,37.59723218,143.01,142.92,24.0514]
[1642423377180,37.59723218,143.01,142.92,94.3114]
[1642423377381,28.1233505,143.02,142.93,0.25]
[1642423379282,24.15768574,143.02,142.93,0.25]
[1642423383515,24.15768574,143.02,142.92,94.3114]
[1642423386819,24.15768574,143.02,142.93,0.25]
[1642423387018,0.17618574,143.02,142.93,0.25]
[1642423389420,0.17618574,143.02,142.93,10.7393]
[1642423389623,0.17618574,143.02,142.94,24.0352]
[1642423389822,0.17618574,143.02,142.95,0.25]
[1642423390222,0.17618574,143.02,142.94,24.0352]
[1642423391323,0.75027182,142.95,142.94,24.0352]
[1642423391726,0.75027182,142.95,142.94,112.2852]
[1642423392124,0.00027182,142.95,142.94,112.2852]
[1642423395925,0.00027182,142.95,142.94,112.0352]
[1642423399827,0.00027182,142.95,142.94,183.73980349]
[1642423400028,0.00027182,142.95,142.94,200.16980349]
[1642423400628,0.00027182,142.95,142.94,234.16980349]
[1642423400828,0.00027182,142.95,142.94,198.9752]
[1642423401027,0.00027182,142.95,142.94,198.7152]
[1642423401228,0.00027182,142.95,142.94,192.7152]
[1642423402032,0.17618574,143.02,142.94,198.7152]
[1642423402236,0.17618574,143.02,142.96,70.26]
[1642423402435,0.17618574,143.02,142.97,24.738]
[1642423402736,0.17618574,143.02,142.97,24.988]
[1642423409744,0.17618574,143.02,142.97,24.738]
[1642423409946,5.55718574,143.02,142.97,24.738]
[1642423410141,5.55718574,143.02,142.95,23.7848]
[1642423410942,5.55718574,143.02,142.96,37.51214942]
[1642423411143,0.17618574,143.02,142.96,37.51214942]
[1642423411445,0.17618574,143.02,142.96,61.06294942]
[1642423414774,0.17618574,143.02,142.96,23.5508]
[1642423416779,8.57028574,143.02,142.96,23.5508]
[1642423417776,8.57028574,143.02,142.86,10.484]
[1642423417975,23.6336,143.01,142.9,24.9025]
[1642423418178,8.3965,142.98,142.9,24.9025]
[1642423418376,16.1515,142.98,142.9,95.1625]
[1642423418778,16.1515,142.98,142.91,39.91021791]
[1642423418980,7.755,142.98,142.91,39.91021791]
[1642423419482,36.50362543,142.99,142.91,39.91021791]
[1642423419679,36.50362543,142.99,142.92,24.8187]
[1642423419880,44.89932543,142.99,142.92,24.8187]
[1642423430192,44.89932543,142.99,142.88,23.3976]
[1642423430393,8.3981,142.95,142.87,24.4478]
[1642423430897,8.3981,142.95,142.87,72.15870702]
[1642423431494,8.3981,142.95,142.88,0.25]
[1642423432696,8.3981,142.95,142.87,72.15870702]
[1642423432897,35.15000722,142.94,142.87,72.15870702]
[1642423433297,35.15000722,142.94,142.88,0.25]
[1642423435703,36.34754332,142.94,142.83,20.5324]
[1642423435908,44.74634332,142.94,142.84,22.8147]
[1642423436701,44.74634332,142.94,142.84,60.67552047]
[1642423437103,44.74634332,142.94,142.85,0.25]
[1642423440329,44.74634332,142.94,142.84,22.8147]
[1642423440529,53.62634332,142.94,142.84,22.8147]
[1642423440931,63.79634332,142.94,142.84,22.8147]
[1642423441731,54.91634332,142.94,142.84,22.8147]
[1642423445636,61.55034332,142.94,142.84,22.8147]
[1642423446233,71.82524332,142.94,142.84,22.8147]
[1642423447541,73.56428757,142.94,142.84,22.8147]
[1642423449346,73.56428757,142.94,142.83,10.3624]
[1642423449746,24.654,142.93,142.83,10.3624]
[1642423449948,8.4019,142.9,142.83,10.3624]
[1642423450145,45.20115713,142.89,142.83,10.3624]
[1642423451546,53.60275713,142.89,142.83,10.3624]
[1642423452447,8.4016,142.89,142.83,10.3624]
[1642423453552,56.41932776,142.89,142.83,10.3624]
[1642423454451,34.824,142.93,142.83,10.3624]
[1642423454652,8.4005,142.91,142.84,24.1122]
[1642423455450,46.9719389,142.91,142.84,24.1122]
[1642423459059,38.5714389,142.91,142.84,24.1122]
[1642423461158,1.73904425,142.9,142.8,1.98940775]
[1642423461361,38.1819,142.89,142.8,1.98940775]
[1642423461959,38.1819,142.89,142.79,1.98940775]
[1642423463260,8.4036,142.87,142.77,24.2144]
[1642423463458,14.8306,142.87,142.77,24.2144]
[1642423463964,48.73239571,142.86,142.77,24.2144]
[1642423464160,8.4048,142.84,142.77,24.2144]
[1642423464761,15.0528,142.84,142.77,24.2144]
[1642423465562,15.0528,142.84,142.75,22.6669]
[1642423465763,15.0528,142.84,142.75,45.2783]
[1642423465963,8.4048,142.84,142.75,45.2783]
[1642423467463,18.5748,142.84,142.75,45.2783]
[1642423469069,18.5748,142.84,142.73,1.98940775]
[1642423470678,18.5748,142.84,142.71,62.55346542]
[1642423471074,22.6406,142.83,142.71,62.55346542]
[1642423471275,8.4068,142.8,142.71,62.55346542]
[1642423471475,56.35494875,142.8,142.71,62.55346542]
[1642423471777,56.35494875,142.8,142.71,23.981]
[1642423471975,63.38894875,142.8,142.71,23.981]
[1642423472179,63.38894875,142.8,142.7,1.98940775]
[1642423472374,73.55894875,142.8,142.7,1.98940775]
[1642423473393,73.55894875,142.8,142.69,24.814]
[1642423474396,73.55894875,142.8,142.7,0.25]
[1642423474796,73.55894875,142.8,142.69,24.814]
[1642423475800,73.55894875,142.8,142.69,71.97643733]
[1642423476501,66.52494875,142.8,142.69,71.97643733]
[1642423477804,66.52494875,142.8,142.7,0.25]
[1642423479614,18.5768,142.8,142.7,1.44931919]
[1642423480003,18.5768,142.8,142.7,0.25]
[1642423480605,46.27269111,142.79,142.7,0.25]
[1642423480807,54.68019111,142.79,142.7,0.25]
[1642423481007,54.68019111,142.79,142.69,82.37173733]
[1642423481725,54.68019111,142.79,142.7,0.25]
[1642423488311,54.68019111,142.79,142.69,37.19870775]
[1642423488511,63.00319111,142.79,142.69,26.80340775]
[1642423488713,11.90904425,142.78,142.69,24.814]
[1642423488911,8.4112,142.76,142.69,24.814]
[1642423489111,14.5192,142.76,142.69,24.814]
[1642423489619,14.5192,142.76,142.68,1.98940775]
[1642423490215,14.5192,142.76,142.69,12.0]
[1642423491014,16.25824425,142.76,142.69,12.0]
[1642423491418,14.5192,142.76,142.69,12.0]
[1642423492419,8.4112,142.76,142.69,12.0]
[1642423493477,78.6712,142.76,142.69,12.0]
[1642423493617,10.17,142.75,142.69,12.0]
[1642423493816,53.62073292,142.74,142.69,12.0]
[1642423497019,62.05873292,142.74,142.69,12.0]
[1642423497620,10.17,142.73,142.69,12.0]
[1642423497820,8.4138,142.72,142.69,12.0]
[1642423498021,6.06439994,142.71,142.69,12.0]
[1642423498923,8.4136,142.7,142.69,12.0]
[1642423500158,8.4136,142.7,142.62,1.98940775]
[1642423501157,36.36448362,142.69,142.62,1.98940775]
[1642423501358,8.4139,142.68,142.62,1.98940775]
[1642423502157,8.4139,142.68,142.61,25.79060775]
[1642423503157,8.4139,142.68,142.61,23.8012]
[1642423507066,8.4131,142.7,142.61,23.8012]
[1642423507266,34.9965,142.73,142.62,0.25]
[1642423507870,34.9965,142.73,142.61,23.8012]
[1642423508095,48.18140968,142.72,142.61,23.8012]
[1642423508768,48.18140968,142.72,142.62,0.25]
[1642423509165,39.76950968,142.72,142.67,29.74154533]
[1642423509368,39.76950968,142.72,142.67,59.48309066]
[1642423509967,10.17,142.73,142.67,59.48309066]
[1642423510469,8.4092,142.76,142.67,59.48309066]
[1642423510667,8.4092,142.76,142.68,0.25]
[1642423510892,8.4092,142.76,142.67,82.88539066]
[1642423511067,53.0873732,142.76,142.67,82.88539066]
[1642423512070,44.6781732,142.76,142.67,82.88539066]
[1642423512271,44.6781732,142.76,142.68,0.25]
[1642423512671,44.6781732,142.76,142.67,82.88539066]
[1642423513273,44.6781732,142.76,142.68,0.25]
[1642423514172,10.17,142.77,142.68,0.25]
[1642423514371,10.17,142.77,142.68,5.832]
[1642423514573,13.86082148,142.81,142.72,59.48309066]
[1642423514775,3.69082148,142.81,142.73,0.25]
[1642423515174,3.69082148,142.81,142.73,34.55449412]
[1642423515373,3.69082148,142.81,142.73,34.80449412]
[1642423515374,1.95177723,142.81,142.73,34.80449412]
[1642423515576,1.95177723,142.81,142.73,34.55449412]
[1642423515976,1.95177723,142.81,142.72,59.48309066]
[1642423516174,46.63189594,142.82,142.73,0.25]
[1642423516374,1.73904425,142.81,142.72,59.48309066]
[1642423516812,11.90904425,142.81,142.72,59.48309066]
[1642423517176,10.17,142.8,142.73,52.0]
[1642423517375,8.4081,142.78,142.73,52.0]
[1642423517578,8.4081,142.78,142.72,59.48309066]
[1642423517776,10.17,142.77,142.72,59.48309066]
[1642423517976,10.17,142.8,142.72,59.48309066]
[1642423518178,18.71094019,142.82,142.72,59.48309066]
[1642423518399,1.95177723,142.78,142.73,35.45627675]
[1642423519300,1.95177723,142.78,142.72,59.48309066]
[1642423519498,37.86619458,142.79,142.72,29.74154533]
[1642423519703,37.86619458,142.79,142.68,47.3116]
[1642423519998,37.86619458,142.79,142.76,29.74154533]
[1642423520400,14.47249994,142.78,142.76,29.74154533]
[1642423524806,3.03219997,142.78,142.74,29.74154533]
[1642423525006,37.86619458,142.79,142.73,40.31810102]
[1642423525206,37.86619458,142.79,142.76,59.48309066]
[1642423528618,3.03219997,142.78,142.76,59.48309066]
[1642423529116,37.86619458,142.79,142.76,59.48309066]
[1642423530217,37.86619458,142.79,142.73,45.81471782]
[1642423530416,3.03219997,142.78,142.76,59.48309066]
[1642423530819,3.03219997,142.78,142.76,59.33386266]
[1642423532016,11.44059997,142.78,142.76,59.33386266]
[1642423532218,3.03219997,142.77,142.76,59.33386266]
[1642423535622,8.4065,142.81,142.76,29.74154533]
[1642423535821,8.4065,142.81,142.76,29.59231733]
[1642423536030,8.4065,142.81,142.78,29.74154533]
[1642423536224,3.03219997,142.8,142.78,29.74154533]
[1642423536423,3.03219997,142.8,142.78,65.80897676]
[1642423538551,3.03219997,142.8,142.78,29.74154533]
[1642423539153,3.03219997,142.79,142.78,29.74154533]
[1642423539752,40.22181455,142.79,142.78,29.74154533]
[1642423539953,40.22181455,142.79,142.76,29.59231733]
[1642423540752,8.4083,142.78,142.69,23.9267]
[1642423541255,8.4083,142.78,142.74,29.59231733]
[1642423541854,8.4083,142.78,142.74,21.18720285]
[1642423542054,18.5783,142.78,142.74,21.18720285]
[1642423542357,18.5783,142.78,142.74,10.50836261]
[1642423542554,8.4127,142.74,142.66,1.98940775]
[1642423542755,37.18961458,142.73,142.66,1.98940775]
[1642423543156,37.18961458,142.73,142.64,1.98940775]
[1642423543860,37.18961458,142.73,142.64,25.17530775]
[1642423544458,8.4133,142.71,142.64,23.1859]
[1642423546462,33.31669316,142.7,142.64,23.1859]
[1642423546662,8.4136,142.69,142.6,1.98940775]
[1642423546876,8.4136,142.69,142.6,25.82450775]
[1642423547465,8.4136,142.69,142.6,23.8351]
[1642423547664,8.4136,142.69,142.61,44.9644523]
[1642423550873,18.5836,142.69,142.58,23.1574]
[1642423551069,26.1216,142.69,142.58,23.1574]
[1642423551769,39.04625071,142.68,142.58,40.01244421]
[1642423551972,39.04625071,142.68,142.57,23.929]
[1642423551973,8.418,142.65,142.57,23.929]
[1642423552194,17.087,142.65,142.57,23.929]
[1642423552572,27.257,142.65,142.57,23.929]
[1642423552769,27.257,142.65,142.53,25.24810775]
[1642423552969,101.72005703,142.64,142.54,23.4857]
[1642423553173,8.4197,142.61,142.54,23.4857]
[1642423553369,55.09595071,142.61,142.54,23.4857]
[1642423554772,8.4197,142.61,142.55,0.25]
[1642423554973,8.4174,142.63,142.54,24.69367262]
[1642423555372,8.4174,142.63,142.54,23.4857]
[1642423555777,45.00291425,142.62,142.54,23.4857]
[1642423555972,8.4186,142.61,142.54,23.4857]
[1642423558974,8.4186,142.61,142.53,23.2587]
[1642423559377,14.6876,142.61,142.5,24.5799]
[1642423559578,26.59664425,142.61,142.5,24.5799]
[1642423559782,26.59664425,142.61,142.48,24.0756]
[1642423560378,26.59664425,142.61,142.48,65.20652888]
[1642423560783,26.59664425,142.61,142.48,24.0756]
[1642423560979,26.59664425,142.61,142.46,1.4737814]
[1642423561181,70.26,142.6,142.46,1.4737814]
[1642423561379,10.17,142.59,142.46,1.4737814]
[1642423561580,8.4254,142.56,142.46,1.4737814]
[1642423561779,35.67339349,142.55,142.46,1.4737814]
[1642423562184,37.41243774,142.55,142.46,1.4737814]
[1642423562381,1.73904425,142.54,142.46,1.4737814]
[1642423562578,7.89104425,142.54,142.46,1.4737814]
[1642423562779,70.26,142.51,142.46,1.4737814]
[1642423562978,8.4266,142.5,142.46,1.4737814]
[1642423563184,10.17,142.49,142.46,1.4737814]
[1642423563406,6.06439994,142.48,142.46,1.4737814]
[1642423564105,37.18816362,142.48,142.46,1.4737814]
[1642423564507,8.4277,142.47,142.46,1.4737814]
[1642423565507,8.4277,142.47,142.46,8.14e-05]
[1642423565709,8.4277,142.47,142.35,22.9242]
[1642423565907,70.26,142.46,142.35,22.9242]
[1642423566138,8.429,142.43,142.35,22.9242]
[1642423566708,8.429,142.43,142.36,48.21489784]
[1642423566908,8.429,142.43,142.36,47.71489784]
[1642423567312,8.429,142.43,142.35,22.9242]
[1642423567709,14.039,142.43,142.35,22.9242]
[1642423568109,15.77804425,142.43,142.32,22.6474]
[1642423568322,25.94804425,142.43,142.29,39.37228245]
[1642423568511,25.94804425,142.43,142.29,62.53258245]
[1642423569609,25.94804425,142.43,142.29,68.53258245]
[1642423570211,20.33804425,142.43,142.29,68.53258245]
[1642423570417,18.599,142.43,142.3,0.25]
[1642423570911,18.599,142.43,142.3,1.45797262]
[1642423571312,53.78811874,142.43,142.3,71.71797262]
[1642423571513,53.78811874,142.43,142.33,41.18784815]
[1642423571714,53.78811874,142.43,142.33,63.80914815]
[1642423572618,18.599,142.43,142.33,63.80914815]
[1642423572914,18.599,142.43,142.34,0.25]
[1642423573315,10.17,142.43,142.34,0.25]
[1642423573716,10.17,142.43,142.34,10.7849]
[1642423574115,10.17,142.43,142.34,10.5349]
[1642423574616,18.5993,142.43,142.33,63.80914815]
[1642423574817,18.5993,142.43,142.34,0.25]
[1642423575015,10.17,142.43,142.34,0.25]
[1642423575219,10.17,142.43,142.33,63.80914815]
[1642423575419,10.17,142.43,142.34,0.25]
[1642423575618,10.17,142.47,142.34,0.25]
[1642423575830,10.17,142.47,142.34,93.2312]
[1642423576021,10.17,142.47,142.34,103.7663]
[1642423576220,1.73904425,142.52,142.34,111.23427262]
[1642423576422,11.90904425,142.52,142.35,33.8989]
[1642423576622,10.17,142.52,142.35,39.4139]
[1642423576821,10.17,142.52,142.37,35.1007]
[1642423577063,10.17,142.52,142.4,10.5303]
[1642423577223,10.17,142.52,142.42,46.87847655]
[1642423578624,10.17,142.52,142.42,57.40787655]
[1642423579426,10.17,142.52,142.42,46.87847655]
[1642423579628,44.13417321,142.51,142.42,46.87847655]
[1642423580025,1.16857229,142.53,142.42,46.87847655]
[1642423580225,1.16857229,142.53,142.43,23.6161]
[1642423580432,10.17,142.54,142.43,23.6161]
[1642423580937,35.53649244,142.53,142.43,23.6161]
[1642423581128,43.95979244,142.53,142.43,34.1444]
[1642423581529,8.4233,142.53,142.43,34.1444]
[1642423584829,8.4233,142.53,142.43,23.6161]
[1642423585131,10.16234425,142.53,142.43,23.6161]
[1642423587232,10.17,142.52,142.43,23.6161]
[1642423587431,8.4248,142.5,142.43,23.6161]
[1642423587631,8.4248,142.5,142.42,46.87847655]
[1642423588635,10.16384425,142.5,142.42,46.87847655]
[1642423590066,8.4248,142.5,142.42,46.87847655]
[1642423590666,20.33304425,142.52,142.42,46.87847655]
[1642423590865,18.594,142.52,142.43,23.3373]
[1642423591266,10.17,142.52,142.43,23.0873]
[1642423592467,10.17,142.52,142.43,33.6159]
[1642423595174,10.17,142.52,142.44,70.26]
[1642423595368,20.33074425,142.56,142.45,56.95827335]
[1642423595569,20.33074425,142.56,142.45,79.59397335]
[1642423596573,20.33074425,142.56,142.45,88.05297335]
[1642423596771,11.90904425,142.56,142.45,88.05297335]
[1642423597169,11.90904425,142.56,142.48,10.5248]
[1642423597570,11.90904425,142.56,142.49,44.1613164]
[1642423598471,11.90904425,142.56,142.49,54.6853164]
[1642423599271,1.73904425,142.56,142.49,54.6853164]
[1642423599671,1.73904425,142.56,142.49,44.1613164]
[1642423599872,36.52577857,142.56,142.47,10.5254]
[1642423600076,36.52577857,142.56,142.45,115.6718]
[1642423600374,36.52577857,142.56,142.46,0.25]
[1642423600573,1.73904425,142.56,142.46,0.25]
[1642423600974,10.16044425,142.56,142.46,10.7762]
[1642423601577,10.16044425,142.56,142.47,24.6005]
[1642423601779,10.16044425,142.56,142.47,66.96363089]
[1642423602181,8.4214,142.56,142.47,77.48923089]
[1642423603484,8.4214,142.56,142.47,66.96363089]
[1642423603883,8.4214,142.56,142.47,24.6005]
[1642423604093,10.16044425,142.56,142.44,2.67825725]
[1642423604282,8.4252,142.52,142.45,1.98940775]
[1642423604987,35.19490222,142.52,142.45,50.28650038]
[1642423605185,35.19490222,142.52,142.45,1.98940775]
[1642423605384,35.19490222,142.52,142.44,0.6888495]
[1642423606888,45.36490222,142.52,142.44,0.6888495]
[1642423608511,18.5952,142.52,142.44,0.6888495]
[1642423609424,10.17,142.52,142.44,0.6888495]
[1642423609812,10.17,142.55,142.44,0.9388495]
[1642423610011,10.17,142.55,142.44,25.7007495]
[1642423610812,10.17,142.55,142.44,27.69015725]
[1642423611113,10.17,142.55,142.44,97.95015725]
[1642423611315,10.17,142.55,142.44,121.52239727]
[1642423611526,1.95177723,142.58,142.44,121.52239727]
[1642423611713,1.95177723,142.58,142.44,131.69239727]
[1642423612212,1.95177723,142.58,142.44,131.43239727]
[1642423612914,67.10951349,142.59,142.48,10.525]
[1642423613112,67.10951349,142.59,142.48,35.2389]
[1642423613313,67.10951349,142.59,142.49,0.25]
[1642423614616,18.5899,142.59,142.49,0.25]
[1642423615013,20.32894425,142.59,142.49,0.25]
[1642423615614,18.5899,142.59,142.49,0.25]
[1642423618215,20.32894425,142.59,142.49,0.25]
[1642423618417,20.32894425,142.59,142.48,24.7139]
[1642423620217,22.28072148,142.59,142.48,24.7139]
[1642423620518,30.00072148,142.59,142.48,24.7139]
[1642423620720,30.00072148,142.59,142.47,46.68232245]
[1642423621121,40.50543876,142.59,142.47,46.68232245]
[1642423621320,167.66543876,142.59,142.47,46.68232245]
[1642423622226,1.95177723,142.56,142.47,46.68232245]
[1642423622420,10.17,142.55,142.47,46.68232245]
[1642423622620,8.4237,142.53,142.47,46.68232245]
[1642423623524,10.17,142.55,142.47,46.68232245]
[1642423623922,18.5925,142.55,142.47,46.68232245]
[1642423624124,1.95177723,142.56,142.48,0.25]
[1642423624326,1.95177723,142.57,142.48,0.25]
[1642423624523,1.95177723,142.57,142.48,70.51]
[1642423625122,1.95177723,142.57,142.48,81.0347]
[1642423625342,37.02461982,142.59,142.48,81.0347]
[1642423625624,10.37107723,142.6,142.48,81.0347]
[1642423625823,10.37107723,142.6,142.48,111.8114]
[1642423626122,1.95177723,142.6,142.48,111.8114]
[1642423626323,1.95177723,142.6,142.48,112.0714]
[1642423626524,10.17,142.61,142.48,128.2414]